fUST/lending_fUST_20260129
["ID","MTS","AMOUNT","RATE_DAILY","PERIOD"]
[403891857,1769637042940,-1000.0,0.00030618,7]
[403891858,1769637042948,-621554.77,0.00030644,6]
[403891859,1769637042957,-73017.81,0.00030644,6]
[403891860,1769637042966,-1000.0,0.00030659,7]
[403891861,1769637042975,-901.2860834,0.00030683,7]
[403891862,1769637042984,-3605.14433358,0.00030683,7]
[403891863,1769637042993,-8103.46317581,0.00030683,7]
[403891864,1769637043003,-1798.75631379,0.00030683,7]
[403891865,1769637043012,-7187.83022992,0.00030683,7]
[403891866,1769637043021,-4705.69851068,0.00030683,7]
[403891867,1769637043030,-3242.78385282,0.00030683,7]
[403891868,1769637043039,-578.20924308,0.00030684,5]
[403891869,1769637043048,-250.0,0.00030684,5]
[403891870,1769637043059,-599.60298507,0.00030684,5]
[403891871,1769637043068,-621.78829552,0.00030684,5]
[403891873,1769637043077,-393.96445136,0.00030684,5]
[403891875,1769637043086,-174.61919141,0.00030684,5]
[403891877,1769637043096,-730.21831224,0.00030684,5]
[403891878,1769637043105,-181.08010149,0.00030684,5]
[403891879,1769637043115,-187.78006525,0.00030684,5]
[403891880,1769637043124,-174.61919141,0.00030684,5]
[403891881,1769637043134,-194.72792766,0.00030684,5]
[403891882,1769637043143,-181.08010149,0.00030684,5]
[403891883,1769637043153,-201.93286099,0.00030684,5]
[403891884,1769637043162,-209.40437684,0.00030684,5]
[403891885,1769637043171,-217.15233878,0.00030684,5]
[403891886,1769637043183,-225.18697532,0.00030684,5]
[403891887,1769637043192,-2312.83697232,0.00030684,5]
[403891888,1769637043201,-233.51889341,0.00030684,5]
[403891889,1769637043210,-2398.4119403,0.00030684,5]
[403891890,1769637043219,-242.15909246,0.00030684,5]
[403891891,1769637043229,-2487.15318209,0.00030684,5]
[403891892,1769637043238,-478.75725327,0.00030684,5]
[403891893,1769637043248,-251.11897888,0.00030684,5]
[403891894,1769637043258,-2579.17784983,0.00030684,5]
[403891895,1769637043267,-496.47127164,0.00030684,5]
[403891896,1769637043277,-260.4103811,0.00030684,5]
[403891897,1769637043286,-2674.60743027,0.00030684,5]
[403891898,1769637043295,-514.84070869,0.00030684,5]
[403891899,1769637043306,-169.33681227,0.00030684,5]
[403891900,1769637043315,-270.0455652,0.00030684,5]
[403891901,1769637043324,-2773.56790519,0.00030684,5]
[403891902,1769637043333,-533.88981491,0.00030684,5]
[403891903,1769637043343,-250.0,0.00030684,5]
[403891904,1769637043352,-280.03725112,0.00030684,5]
[403891905,1769637043361,-553.64373807,0.00030684,5]
[403891906,1769637043370,-151.0,0.00030684,5]
[403891907,1769637043379,-290.39862941,0.00030684,5]
[403891908,1769637043388,-574.12855637,0.00030684,5]
[403891909,1769637043397,-151.0,0.00030684,5]
[403891910,1769637043405,-301.1433787,0.00030684,5]
[403891911,1769637043415,-595.37131296,0.00030684,5]
[403891912,1769637043424,-261.79283996,0.00030684,5]
[403891913,1769637043433,-617.40005154,0.00030684,5]
[403891914,1769637043442,-640.24385345,0.00030684,5]
[403891915,1769637043451,-594.35199126,0.00030684,5]
[403891916,1769637043459,-151.0,0.00030684,5]
[403891917,1769637043468,-151.0,0.00030684,5]
[403891918,1769637043477,-151.0,0.00030684,5]
[403891919,1769637043486,-151.0,0.00030684,5]
[403891920,1769637043495,-151.0,0.00030684,5]
[403891921,1769637043504,-151.0,0.00030684,5]
[403891922,1769637043513,-500.0,0.00030684,5]
[403891923,1769637043522,-151.0,0.00030684,5]
[403891924,1769637043531,-500.0,0.00030684,5]
[403891925,1769637043540,-151.0,0.00030684,5]
[403891926,1769637043550,-151.0,0.00030684,5]
[403891927,1769637043559,-151.0,0.00030684,5]
[403891928,1769637043568,-178.9805666,0.00030684,5]
[403891929,1769637043577,-151.0,0.00030684,5]
[403891930,1769637043586,-151.0,0.00030684,5]
[403891931,1769637043595,-151.0,0.00030684,5]
[403891932,1769637043603,-151.0,0.00030684,5]
[403891933,1769637043612,-151.0,0.00030684,5]
[403891934,1769637043621,-151.0,0.00030684,5]
[403891935,1769637043630,-151.0,0.00030684,5]
[403891936,1769637043639,-750.0,0.00030685,5]
[403891937,1769637043653,-261.05350261,0.000307,2]
[403891938,1769637043662,-1044.21401046,0.000307,2]
[403891939,1769637043671,-2349.48152353,0.000307,2]
[403891940,1769637043680,-4176.85604184,0.000307,2]
[403891941,1769637043690,-6526.33756537,0.000307,2]
[403891942,1769637043699,-9397.92609413,0.000307,2]
[403891943,1769637043708,-410.25854691,0.000307,2]
[403891944,1769637043720,-41199.39838599,0.000307,30]
[403891945,1769637043729,-772.55120504,0.000307,2]
[403891946,1769637043738,-3090.20482016,0.000307,2]
[403891947,1769637043746,-6952.96084535,0.000307,2]
[403891948,1769637043755,-1219.58505131,0.000307,2]
[403891949,1769637043764,-4878.34020525,0.000307,2]
[403891950,1769637043774,-856.15551,0.000307,6]
[403891951,1769637043783,-1000.0,0.000307,4]
[403891952,1769637043792,-250.0,0.000307,10]
[403891953,1769637043801,-158656.38583447,0.000307,6]
[403891954,1769637043811,-664.65167582,0.000307,7]
[403891955,1769637043819,-937.77202557,0.000307,7]
[403891956,1769637043828,-160.0,0.00030705,7]
[403891957,1769637043838,-4046.67992877,0.00030742,7]
[403891958,1769637043847,-2150.0,0.00030778,2]
[403891959,1769637043856,-630.0,0.00030778,2]
[403891960,1769637043865,-1369.0,0.00030778,2]
[403891961,1769637043874,-716.0,0.00030778,2]
[403891962,1769637043883,-558.797,0.00030778,2]
[403891963,1769637043891,-21590.59692259,0.000308,2]
[403891964,1769637043900,-168.1,0.000308,7]
[403891965,1769637043910,-293.17,0.000308,7]
[403891966,1769637043920,-3183.59511754,0.000308,2]
[403891967,1769637043928,-250.0,0.000308,10]
[403891968,1769637043937,-779.0,0.000308,2]
[403891969,1769637043946,-168.0,0.00030819,2]
[403891970,1769637043956,-161.68161754,0.00030849,30]
[403891971,1769637043964,-167.61061388,0.00030849,30]
[403891972,1769637043973,-168.0,0.0003089,2]
[403891973,1769637043982,-250.0,0.000309,10]
[403891974,1769637043991,-206.36876951,0.00030944,10]
[403891975,1769637044000,-151.0,0.00030944,31]
[403891976,1769637044010,-288.165348,0.00030944,31]
[403891977,1769637044019,-201.250084,0.00030944,31]
[403891978,1769637044028,-201.250084,0.00030944,31]
[403891979,1769637044037,-201.250084,0.00030944,31]
[403891980,1769637044046,-201.250084,0.00030944,31]
[403891981,1769637044055,-151.0,0.00030944,31]
[403891982,1769637044064,-250.000238,0.00030944,31]
[403891983,1769637044073,-151.0,0.00030944,31]
[403891984,1769637044083,-250.000238,0.00030944,31]
[403891985,1769637044092,-151.0,0.00030944,31]
[403891986,1769637044100,-250.000238,0.00030944,31]
[403891987,1769637044110,-253.42086,0.00030944,31]
[403891988,1769637044119,-250.000238,0.00030944,31]
[403891989,1769637044128,-2942119.34884345,0.00030944,30]
[403891990,1769637044150,-5562.6536123,0.00030944,30]
[403891991,1769637044290,-1877.54349157,0.00012235,2]
[403891992,1769637044299,-151.0,0.00030323,7]
[403891993,1769637044307,-286.23816441,0.00030684,5]
[403891994,1769637044316,-15383.45360443,0.00030944,30]
[403892003,1769637045768,-453.0,0.00012515,2]
[403892004,1769637045939,-1424.54349157,0.00012515,2]
[403892006,1769637045949,-578.74233133,0.00012794,2]
[403892008,1769637046031,-1298.80116024,0.00012794,2]
[403892010,1769637046040,-1877.54349157,0.00013073,2]
[403892011,1769637046049,-151.0,0.00030377,7]
[403892012,1769637046059,-151.0,0.00030431,7]
[403892014,1769637046068,-151.0,0.00030485,7]
[403892016,1769637046077,-25666.27373971,0.00030944,30]
[403892057,1769637046465,-500.0,0.00030944,30]
[403892059,1769637046477,-1041.66666667,0.00030944,30]
[403892065,1769637046531,-1831.60302768,0.00030944,30]
[403892068,1769637046543,-1031.07555183,0.00030944,30]
[403892106,1769637799826,-357.35471719,0.00011,2]
[403892107,1769637828044,2633.2311287,0.00010913,2]
[403892213,1769638238374,-581.0,0.00011419,2]
[403892214,1769638238383,-363.24172165,0.00011419,2]
[403892215,1769638238393,-295.569,0.00011715,2]
[403892217,1769638238402,-300.0,0.00011852,2]
[403892219,1769638238411,-300.0,0.00011852,2]
[403892221,1769638238420,-436.06568986,0.00011852,2]
[403892223,1769638238431,-763.93431014,0.00011852,2]
[403892225,1769638238440,-436.51412315,0.00011853,2]
[403892227,1769638238450,-500.0,0.00011853,2]
[403892229,1769638238459,-500.0,0.00011853,2]
[403892231,1769638238468,-179.34002821,0.00011853,2]
[403892233,1769638238477,-500.0,0.00011853,2]
[403892235,1769638238487,-492.54480542,0.00011853,2]
[403892237,1769638238497,-628.75144209,0.00011853,2]
[403892239,1769638238506,-456.35792849,0.00011853,2]
[403892241,1769638238516,-348.11596178,0.00011853,2]
[403892243,1769638238525,-500.0,0.00011853,2]
[403892245,1769638238534,-30916.7514842,0.00011854,2]
[403892247,1769638238546,-290.86545467,0.00011854,2]
[403892249,1769638238557,-1688792.38306113,0.00011854,2]
[403892251,1769638238567,-1010.7776287,0.000119,2]
[403892253,1769638238576,-500.0,0.00011918,2]
[403892255,1769638238587,-174.55748242,0.00011918,2]
[403892257,1769638238598,-151.0,0.00012,2]
[403892259,1769638238606,-151.0,0.00012,2]
[403892261,1769638238613,-151.0,0.00012,2]
[403892263,1769638238621,-151.0,0.00012,2]
[403892265,1769638238630,-151.0,0.00012,2]
[403892267,1769638238639,-151.0,0.00012,2]
[403892269,1769638238649,-151.0,0.00012,2]
[403892271,1769638238659,-151.0,0.00012,2]
[403892273,1769638238668,-151.0,0.00012,2]
[403892274,1769638238678,-151.0,0.00012,2]
[403892275,1769638238687,-1000.0,0.00012,2]
[403892276,1769638238696,-151.0,0.00012,2]
[403892277,1769638238706,-151.0,0.00012,2]
[403892278,1769638238715,-151.0,0.00012,2]
[403892279,1769638238725,-151.0,0.00012,2]
[403892280,1769638238735,-151.0,0.00012,2]
[403892281,1769638238744,-151.0,0.00012,2]
[403892282,1769638238754,-151.0,0.00012,2]
[403892283,1769638238763,-151.0,0.00012,2]
[403892284,1769638238772,-151.0,0.00012,2]
[403892285,1769638238782,-151.0,0.00012,2]
[403892286,1769638238791,-151.0,0.00012,2]
[403892287,1769638238800,-151.0,0.00012,2]
[403892288,1769638238810,-500.0,0.00012055,2]
[403892289,1769638238822,-389.95699981,0.00012057,2]
[403892290,1769638238831,-550.0,0.00012192,2]
[403892291,1769638238841,-300.0,0.00012192,2]
[403892292,1769638238850,-300.0,0.00012192,2]
[403892293,1769638238860,-300.0,0.00012192,2]
[403892294,1769638238869,-300.0,0.00012192,2]
[403892295,1769638238880,-300.0,0.00012192,2]
[403892296,1769638238889,-300.0,0.00012192,2]
[403892297,1769638238899,-300.0,0.00012192,2]
[403892298,1769638238908,-300.0,0.00012192,2]
[403892299,1769638238918,-300.0,0.00012192,2]
[403892300,1769638238928,-300.0,0.00012192,2]
[403892301,1769638238938,-300.0,0.00012192,2]
[403892302,1769638238947,-300.0,0.00012192,2]
[403892303,1769638238956,-300.0,0.00012192,2]
[403892305,1769638238968,-300.0,0.00012192,2]
[403892306,1769638238976,-300.0,0.00012192,2]
[403892308,1769638238986,-600.0,0.00012192,2]
[403892310,1769638238995,-500.0,0.00012192,2]
[403892312,1769638239006,-257.53367083,0.00012329,2]
[403892314,1769638239016,-47278.84635142,0.00012427,2]
[403892316,1769638239025,-1010.77762868,0.00012455,2]
[403892318,1769638239035,-160.95757695,0.00012466,2]
[403892320,1769638239045,-250.0,0.00012603,2]
[403892321,1769638239055,-1000.0,0.00012999,2]
[403892322,1769638239064,-500.0,0.00012999,2]
[403892323,1769638239073,-500.0,0.00012999,2]
[403892324,1769638239084,-500.0,0.00012999,2]
[403892325,1769638239094,-500.0,0.00012999,2]
[403892326,1769638239103,-2736.94264847,0.00013,2]
[403892327,1769638239113,-1010.77762868,0.00013011,2]
[403892328,1769638239123,-420.0,0.00013013,2]
[403892329,1769638239132,-1200.0,0.00013037,2]
[403892330,1769638239141,-500.0,0.00013136,2]
[403892331,1769638239150,-500.0,0.00013136,2]
[403892332,1769638239159,-500.0,0.00013136,2]
[403892333,1769638239169,-500.0,0.00013136,2]
[403892334,1769638239178,-500.0,0.00013273,2]
[403892335,1769638239188,-507.06964924,0.00013273,2]
[403892336,1769638239197,-500.0,0.00013273,2]
[403892337,1769638239206,-500.0,0.00013273,2]
[403892338,1769638239215,-500.0,0.00013273,2]
[403892339,1769638239224,-250.0,0.00013273,2]
[403892340,1769638239233,-200.34117545,0.00013273,2]
[403892341,1769638239243,-201.34473985,0.00013273,2]
[403892342,1769638239252,-500.0,0.00013273,2]
[403892343,1769638239261,-500.0,0.00013273,2]
[403892344,1769638239271,-600.0,0.00013273,2]
[403892345,1769638239280,-500.0,0.00013273,2]
[403892346,1769638239290,-191.81,0.00013311,2]
[403892347,1769638239299,-503.23543832,0.0001341,2]
[403892348,1769638239308,-500.0,0.0001341,2]
[403892349,1769638239318,-500.0,0.0001341,2]
[403892350,1769638239328,-720.0,0.00013411,2]
[403892351,1769638239337,-428.62523155,0.00013419,2]
[403892352,1769638239347,-1010.77762868,0.00013566,2]
[403892353,1769638239356,-382.83535721,0.00013571,2]
[403892354,1769638239366,-500.0,0.00013698,2]
[403892355,1769638239376,-500.0,0.00013698,2]
[403892356,1769638239385,-500.0,0.00013698,2]
[403892357,1769638239395,-500.0,0.00013698,2]
[403892358,1769638239404,-500.0,0.00013698,2]
[403892359,1769638239413,-500.0,0.00013698,2]
[403892360,1769638239423,-500.0,0.00013698,2]
[403892361,1769638239433,-500.0,0.00013698,2]
[403892362,1769638239442,-500.0,0.00013698,2]
[403892363,1769638239451,-500.0,0.00013698,2]
[403892364,1769638239460,-500.0,0.00013698,2]
[403892365,1769638239469,-500.0,0.00013698,2]
[403892366,1769638239479,-500.0,0.00013698,2]
[403892367,1769638239488,-500.0,0.00013698,2]
[403892368,1769638239497,-500.0,0.00013698,2]
[403892369,1769638239507,-500.0,0.00013698,2]
[403892370,1769638239516,-500.0,0.00013698,2]
[403892371,1769638239526,-500.0,0.00013698,2]
[403892372,1769638239534,-500.0,0.00013698,2]
[403892373,1769638239543,-500.0,0.00013698,2]
[403892374,1769638239552,-640.58071433,0.00013698,2]
[403892375,1769638239561,-1000.0,0.00013699,2]
[403892376,1769638239571,-906.494079,0.00013699,2]
[403892377,1769638239579,-500.0,0.00013699,2]
[403892378,1769638239589,-500.0,0.00013699,2]
[403892379,1769638239598,-500.0,0.00013699,2]
[403892380,1769638239607,-500.0,0.00013699,2]
[403892381,1769638239616,-500.0,0.00013699,2]
[403892382,1769638239625,-421.30369645,0.00013699,2]
[403892383,1769638239634,-355.419529,0.00013821,2]
[403892384,1769638239643,-1000.0,0.00013821,2]
[403892385,1769638239652,-1000.0,0.00013821,2]
[403892386,1769638239660,-1000.0,0.00013821,2]
[403892387,1769638239669,-2834.95251133,0.00013907,2]
[403892388,1769638239679,-1000.0,0.00014,2]
[403892389,1769638239687,-642.6452828,0.00014,2]
[403892390,1769638239697,-100000.0,0.00014006,2]
[403892391,1769638239706,-1010.77762868,0.00014121,2]
[403892392,1769638239715,-341.02216059,0.00014247,2]
[403892393,1769638239724,-1000.0,0.00014247,2]
[403892394,1769638239733,-1000.0,0.00014247,2]
[403892395,1769638239742,-722.3651231,0.00014247,2]
[403892396,1769638239752,-1134.23032778,0.00014247,2]
[403892397,1769638239761,-587.0,0.00014287,2]
[403892398,1769638239770,-1500.0,0.00014368,2]
[403892399,1769638239779,-1500.0,0.00014368,2]
[403892400,1769638239788,-1500.0,0.00014368,2]
[403892401,1769638239797,-864.0,0.00014752,2]
[403892402,1769638239807,-1500.0,0.00014795,2]
[403892403,1769638239816,-500.0,0.00014795,2]
[403892404,1769638239825,-2000.0,0.00014916,2]
[403892405,1769638239835,-2000.0,0.00014916,2]
[403892406,1769638239844,-2074.12268118,0.00014916,2]
[403892407,1769638239853,-1000.0,0.00015,2]
[403892408,1769638239862,-237.790353,0.00015068,2]
[403892409,1769638239871,-250.0,0.00015089,2]
[403892410,1769638239881,-9779.13,0.00015342,2]
[403892411,1769638239890,-2000.0,0.00015342,2]
[403892412,1769638239899,-494.00874144,0.00015419,2]
[403892413,1769638239908,-2500.0,0.00015464,2]
[403892414,1769638239917,-2500.0,0.00015464,2]
[403892415,1769638239926,-5038.08922706,0.0001564,2]
[403892416,1769638239935,-823.0,0.00015687,2]
[403892417,1769638239944,-2500.0,0.0001589,2]
[403892418,1769638239954,-3000.0,0.00016,2]
[403892419,1769638239965,-1000.0,0.00016,2]
[403892420,1769638239974,-3000.0,0.0001601,2]
[403892421,1769638239983,-1702.90287346,0.00016012,2]
[403892422,1769638239992,-3000.0,0.00016012,2]
[403892423,1769638240002,-3000.0,0.0001602,2]
[403892424,1769638240011,-3000.0,0.0001603,2]
[403892425,1769638240020,-3000.0,0.0001604,2]
[403892426,1769638240030,-4440.65683,0.0001605,2]
[403892427,1769638240042,-1000.0,0.00016228,2]
[403892428,1769638240051,-200.0,0.00016438,2]
[403892429,1769638240061,-500.0,0.00016438,2]
[403892430,1769638240071,-474.54159977,0.00016438,2]
[403892431,1769638240080,-150.42150351,0.00016438,2]
[403892432,1769638240089,-164.57351573,0.00016438,2]
[403892433,1769638240098,-3000.0,0.00016438,2]
[403892434,1769638240107,-200.0,0.00016473,2]
[403892435,1769638240116,-1000.0,0.0001656,2]
[403892436,1769638240126,-206.05722388,0.00016712,3]
[403892437,1769638240135,-3500.0,0.00016986,2]
[403892439,1769638240145,-1041.66666667,0.00016997,2]
[403892440,1769638240154,-160.0,0.00016997,2]
[403892441,1769638240164,-160.0,0.00016997,2]
[403892442,1769638240173,-1000.0,0.00017,2]
[403892443,1769638240183,-1152.0,0.00017223,2]
[403892444,1769638240192,-559.39225134,0.00017419,2]
[403892445,1769638240201,-4000.0,0.00017534,2]
[403892446,1769638240210,-1000.0,0.000178,2]
[403892447,1769638240219,-150.12313849,0.00017808,2]
[403892448,1769638240228,-281.81382901,0.00017842,2]
[403892449,1769638240237,-1000.0,0.0001785,2]
[403892450,1769638240246,-244.0,0.0001785,2]
[403892452,1769638240256,-1506.71509095,0.00018,2]
[403892453,1769638240265,-4500.0,0.00018082,2]
[403892455,1769638240275,-174.0,0.00018356,3]
[403892457,1769638240284,-237.790353,0.00018493,2]
[403892459,1769638240293,-4694.85911576,0.0001863,2]
[403892461,1769638240302,-1613.0,0.0001891,2]
[403892463,1769638240312,-508.07,0.00019178,2]
[403892464,1769638240322,-1270.15,0.00019178,2]
[403892466,1769638240330,-1270.1535,0.00019178,2]
[403892467,1769638240339,-200.0,0.00019178,2]
[403892468,1769638240348,-857.21,0.00019178,2]
[403892469,1769638240358,-500.0,0.00019178,2]
[403892470,1769638240367,-172.01,0.000192,2]
[403892471,1769638240376,-161.04,0.000192,2]
[403892472,1769638240385,-1459.38,0.000192,2]
[403892473,1769638240394,-6249.64,0.000192,2]
[403892474,1769638240403,-624.77576124,0.00019419,2]
[403892475,1769638240412,-1270.1535,0.00019589,3]
[403892476,1769638240422,-1000.0,0.00019635,2]
[403892477,1769638240432,-492.0,0.00019635,2]
[403892478,1769638240441,-177.0,0.0002,3]
[403892479,1769638240450,-70910.94003129,0.0002,2]
[403892480,1769638240459,-906.494079,0.00020548,2]
[403892481,1769638240470,-1603.15,0.00020667,30]
[403892482,1769638240479,-2186.0,0.00020762,2]
[403892483,1769638240488,-3000.0,0.00021,2]
[403892484,1769638240497,-3000.0,0.0002101,2]
[403892485,1769638240506,-3000.0,0.0002102,2]
[403892486,1769638240515,-4905.103121,0.0002102,7]
[403892487,1769638240524,-3000.0,0.0002103,2]
[403892488,1769638240533,-3000.0,0.0002104,2]
[403892489,1769638240542,-3000.0,0.0002105,2]
[403892490,1769638240551,-3000.0,0.0002106,2]
[403892491,1769638240560,-3000.0,0.0002107,2]
[403892492,1769638240570,-3000.0,0.0002108,2]
[403892493,1769638240579,-3000.0,0.0002109,2]
[403892494,1769638240588,-3000.0,0.000211,2]
[403892495,1769638240598,-3000.0,0.0002111,2]
[403892496,1769638240607,-3000.0,0.0002112,2]
[403892497,1769638240616,-3000.0,0.0002113,2]
[403892498,1769638240624,-3000.0,0.0002114,2]
[403892499,1769638240633,-3000.0,0.0002115,2]
[403892500,1769638240643,-656.05350674,0.00021152,7]
[403892501,1769638240651,-3000.0,0.0002116,2]
[403892502,1769638240660,-3000.0,0.0002117,2]
[403892503,1769638240669,-3000.0,0.0002118,2]
[403892504,1769638240678,-3000.0,0.0002119,2]
[403892505,1769638240687,-3000.0,0.000212,2]
[403892506,1769638240696,-3000.0,0.0002121,2]
[403892507,1769638240706,-3000.0,0.0002122,2]
[403892508,1769638240715,-3000.0,0.0002123,2]
[403892509,1769638240724,-3000.0,0.0002124,2]
[403892510,1769638240733,-3000.0,0.0002125,2]
[403892511,1769638240742,-3000.0,0.0002126,2]
[403892512,1769638240751,-3000.0,0.0002127,2]
[403892513,1769638240760,-3000.0,0.0002128,2]
[403892522,1769638240896,-3000.0,0.0002129,2]
[403892523,1769638240905,-3000.0,0.000213,2]
[403892524,1769638240914,-3000.0,0.0002131,2]
[403892525,1769638240923,-3000.0,0.0002132,2]
[403892526,1769638240932,-3000.0,0.0002133,2]
[403892527,1769638240941,-3000.0,0.0002134,2]
[403892528,1769638240950,-3000.0,0.0002135,2]
[403892529,1769638240961,-3000.0,0.0002136,2]
[403892530,1769638240972,-3000.0,0.0002137,2]
[403892531,1769638240981,-3000.0,0.0002138,2]
[403892532,1769638240990,-3000.0,0.0002139,2]
[403892533,1769638240999,-3000.0,0.000214,2]
[403892534,1769638241008,-3000.0,0.0002141,2]
[403892535,1769638241017,-690.15927113,0.00021419,2]
[403892536,1769638241026,-3000.0,0.0002142,2]
[403892537,1769638241038,-4559.34317,0.0002143,2]
[403892538,1769638241047,-1000.0,0.00021599,10]
[403892539,1769638241056,-791.0,0.00021599,10]
[403892540,1769638241065,-179.0,0.00021644,5]
[403892541,1769638241075,-6249.64,0.000217,2]
[403892542,1769638241084,-1459.38,0.000219,2]
[403892543,1769638241093,-237.790353,0.00021918,2]
[403892544,1769638241103,-3206.31,0.00021928,30]
[403892545,1769638241112,-1401.458034,0.00022702,30]
[403892546,1769638241121,-4809.46,0.00023189,30]
[403892547,1769638241130,-180.0,0.00023288,9]
[403892548,1769638241139,-755.54278103,0.0002342,2]
[403892549,1769638241148,-1000.0,0.00023759,10]
[403892550,1769638241157,-1000.0,0.00023759,10]
[403892551,1769638241167,-157.72,0.000238,2]
[403892552,1769638241175,-9112.457699,0.00023978,2]
[403892553,1769638241184,-293.17,0.00024,7]
[403892554,1769638241193,-6412.62,0.00024451,30]
[403892555,1769638241203,-380.0,0.00024658,2]
[403892556,1769638241212,-500.0,0.00024658,2]
[403892557,1769638241221,-500.0,0.00024795,2]
[403892558,1769638241230,-168.1,0.000249,7]
[403892559,1769638241239,-615285.003744,0.000249,2]
[403892560,1769638241248,-183.0,0.00024932,15]
[403892561,1769638241257,-500.0,0.00024932,2]
[403892562,1769638241266,-1041.66666667,0.00025,30]
[403892563,1769638241275,-605.0,0.00025069,2]
[403892564,1769638241285,-161.04,0.000251,7]
[403892565,1769638241294,-276.13,0.00025157,2]
[403892566,1769638241303,-350.0,0.00025205,2]
[403892567,1769638241312,-237.790353,0.00025342,2]
[403892568,1769638241322,-6249.64,0.000254,2]
[403892569,1769638241331,-820.92629093,0.0002542,2]
[403892570,1769638241340,-8015.77,0.00025712,30]
[403892571,1769638241349,-204.22,0.00025824,2]
[403892572,1769638241358,-2230.45796345,0.00025974,30]
[403892573,1769638241367,-1000.0,0.00026135,30]
[403892574,1769638241376,-1000.0,0.00026135,30]
[403892575,1769638241385,-579.0,0.00026135,30]
[403892576,1769638241394,-700.729017,0.00026275,30]
[403892577,1769638241403,-199.0,0.00026575,21]
[403892578,1769638241413,-1459.38,0.000266,14]
[403892579,1769638241422,-184.95386914,0.00026718,5]
[403892580,1769638241431,-157.26127169,0.00026718,5]
[403892581,1769638241440,-9618.93,0.00026973,30]
[403892582,1769638241450,-1021.0,0.00027,2]
[403892583,1769638241459,-157.1173049,0.00027397,2]
[403892584,1769638241468,-886.30980083,0.00027419,2]
[403892585,1769638241477,-184.95386914,0.00027544,5]
[403892586,1769638241486,-1071.528267,0.000279,5]
[403892587,1769638241495,-250.0,0.00027945,5]
[403892588,1769638241504,-250.0,0.00027945,5]
[403892589,1769638241513,-1021.0,0.00028,2]
[403892590,1769638241522,-157.72,0.000282,2]
[403892591,1769638241531,-199.0,0.00028219,28]
[403892592,1769638241541,-11222.08,0.00028235,30]
[403892593,1769638241550,-184.95386914,0.00028282,5]
[403892594,1769638241559,-160.0,0.0002838,3]
[403892595,1769638241568,-1000.0,0.000284,5]
[403892596,1769638241577,-350.0,0.00028493,5]
[403892597,1769638241586,-350.0,0.00028493,5]
[403892598,1769638241595,-800.0,0.00028632,2]
[403892599,1769638241604,-1000.0,0.00028748,30]
[403892600,1769638241613,-1000.0,0.00028748,30]
[403892601,1769638241622,-1000.0,0.00028748,30]
[403892602,1769638241631,-237.790353,0.00028767,60]
[403892603,1769638241641,-6249.64,0.000288,2]
[403892604,1769638241650,-558.797,0.0002884,2]
[403892605,1769638241659,-418.0,0.0002884,2]
[403892606,1769638241669,-716.0,0.0002884,2]
[403892607,1769638241678,-180.381,0.0002884,2]
[403892608,1769638241687,-1000.0,0.000289,5]
[403892609,1769638241696,-800.0,0.00028976,2]
[403892610,1769638241705,-161.04,0.00029,7]
[403892611,1769638241715,-1021.0,0.00029,2]
[403892612,1769638241724,-1041.66666667,0.00029,30]
[403892613,1769638241733,-450.0,0.00029041,5]
[403892614,1769638241742,-450.0,0.00029041,5]
[403892615,1769638241752,-184.95386914,0.00029157,5]